bitfinex/quotes_SOLUSD_20250731
["timestamp","ask_amount","ask_price","bid_price","bid_amount"]
[1753956154081,38.06,182.78,182.74,5.51306607]
[1753956154285,38.06,182.78,182.74,4.85306607]
[1753956154472,38.06,182.78,182.75,0.66]
[1753956156376,38.06,182.78,182.75,5.51306607]
[1753956156584,38.06,182.78,182.75,4.85306607]
[1753956156773,30.85306607,182.8,182.76,0.66]
[1753956156971,38.08,182.79,182.76,0.66]
[1753956160989,38.08,182.79,182.77,0.66]
[1753956161575,5.57306607,182.78,182.74,0.66]
[1753956161776,43.63306607,182.77,182.74,0.66]
[1753956162193,43.63306607,182.77,182.73,0.06]
[1753956162496,0.72,182.76,182.73,0.72]
[1753956162689,38.06,182.75,182.74,0.66]
[1753956163996,11.04428477,182.78,182.74,0.66]
[1753956164195,38.06,182.77,182.73,4.91306607]
[1753956164375,38.06,182.77,182.75,0.66]
[1753956164775,38.06,182.77,182.76,0.66]
[1753956165892,38.04,182.77,182.76,0.66]
[1753956166095,38.04,182.77,182.76,10.98472288]
[1753956166282,38.06,182.77,182.76,10.98472288]
[1753956167490,38.09,182.77,182.76,10.98472288]
[1753956167691,49.13455005,182.77,182.73,88.42]
[1753956167883,48.41455005,182.77,182.73,88.42]
[1753956168195,48.41455005,182.77,182.73,87.76]
[1753956168196,5.57306607,182.76,182.73,87.76]
[1753956168384,38.1,182.75,182.73,87.76]
[1753956168588,38.82,182.75,182.73,87.76]
[1753956168899,43.67306607,182.75,182.73,87.76]
[1753956169682,42.95306607,182.75,182.73,87.76]
[1753956171394,5.56306607,182.74,182.73,0.06]
[1753956172908,9.24166293,182.74,182.73,0.06]
[1753956173387,14.71391859,182.74,182.73,0.06]
[1753956178395,31.49860256,182.74,182.73,0.06]
[1753956180192,14.71391859,182.74,182.73,0.06]
[1753956181610,9.86085252,182.74,182.73,0.06]
[1753956181811,78.14391859,182.74,182.73,0.06]
[1753956183305,42.78468397,182.71,182.7,0.06]
[1753956183507,16.78468397,182.69,182.68,0.06]
[1753956183706,63.4963469,182.69,182.68,0.06]
[1753956184005,4.85306607,182.68,182.67,0.06]
[1753956184207,9.24166293,182.68,182.67,0.06]
[1753956185120,9.24166293,182.68,182.63,0.06]
[1753956185121,26.0,182.66,182.63,0.06]
[1753956185301,67.87859686,182.66,182.63,0.06]
[1753956185504,74.06324921,182.66,182.63,0.06]
[1753956185701,78.91631528,182.66,182.63,0.06]
[1753956189323,95.70099925,182.66,182.65,1e-08]
[1753956189512,16.78468397,182.65,182.63,0.06]
[1753956189821,26.0263469,182.65,182.63,0.06]
[1753956190023,42.58859686,182.64,182.63,0.06]
[1753956190317,47.44166293,182.64,182.63,0.06]
[1753956191220,52.91691479,182.64,182.63,0.06]
[1753956191718,69.70159876,182.64,182.63,0.06]
[1753956191913,74.02107547,182.64,182.63,0.06]
[1753956192423,70.34247861,182.64,182.63,0.06]
[1753956192628,74.0105836,182.64,182.63,0.06]
[1753956193929,74.0105836,182.64,182.63,1e-08]
[1753956197618,73.3005836,182.64,182.63,1e-08]
[1753956198237,70.34247861,182.64,182.63,1e-08]
[1753956203148,70.34247861,182.64,182.62,1e-08]
[1753956203149,16.78468397,182.63,182.62,1e-08]
[1753956203448,27.16081611,182.63,182.62,1e-08]
[1753956203629,26.49081611,182.63,182.62,1e-08]
[1753956203829,27.16081611,182.63,182.62,1e-08]
[1753956204010,30.81773129,182.63,182.62,1e-08]
[1753956204214,36.29328295,182.63,182.62,1e-08]
[1753956205430,32.63636777,182.63,182.62,1e-08]
[1753956205828,27.7833017,182.63,182.62,1e-08]
[1753956206516,31.44064807,182.63,182.62,1e-08]
[1753956210418,36.29371414,182.63,182.62,1e-08]
[1753956210917,31.44064807,182.63,182.62,1e-08]
[1753956212143,31.44527285,182.63,182.62,1e-08]
[1753956213222,31.44527285,182.63,182.61,0.06]
[1753956213223,36.29833892,182.63,182.61,1e-08]
[1753956213533,68.96278726,182.62,182.61,1e-08]
[1753956214720,9.70613214,182.61,182.6,1e-08]
[1753956215048,14.03810329,182.61,182.6,1e-08]
[1753956215950,19.51425465,182.61,182.6,1e-08]
[1753956218219,18.84425465,182.61,182.6,1e-08]
[1753956218522,13.99118858,182.61,182.6,1e-08]
[1753956223320,14.66118858,182.61,182.6,1e-08]
[1753956224350,19.51425465,182.61,182.6,1e-08]
[1753956225967,36.29893862,182.61,182.59,1e-08]
[1753956226250,47.30503722,182.6,182.59,1e-08]
[1753956226822,52.78148847,182.6,182.58,1e-08]
[1753956227041,25.96972119,182.59,182.58,1e-08]
[1753956228445,31.44647238,182.59,182.58,1e-08]
[1753956228647,36.02393632,182.59,182.58,1e-08]
[1753956229559,26.0,182.56,182.54,0.66]
[1753956229756,26.0,182.56,182.52,0.2]
[1753956229757,46.63503722,182.55,182.52,0.2]
[1753956229937,8.51503722,182.54,182.53,0.66]
[1753956230549,13.99328856,182.54,182.53,0.66]
[1753956232262,13.99328856,182.54,182.52,0.91]
[1753956232464,72.63503722,182.53,182.52,0.91]
[1753956234269,78.11358869,182.53,182.52,0.91]
[1753956236449,78.11358869,182.53,182.52,0.2]
[1753956238449,78.82358869,182.53,182.52,0.2]
[1753956238752,95.60827266,182.53,182.52,0.2]
[1753956240147,69.60827266,182.53,182.52,0.2]
[1753956240954,68.89827266,182.53,182.52,0.2]
[1753956242173,69.60827266,182.53,182.52,0.2]
[1753956244271,68.89827266,182.53,182.52,0.2]
[1753956244581,47.26052262,182.53,182.52,0.91]
[1753956244746,5.5062544,182.61,182.53,6.3389]
[1753956244948,0.03,182.61,182.6,4.85306607]
[1753956245174,38.21,182.61,182.58,1.6402]
[1753956245352,38.21,182.61,182.59,4.85306607]
[1753956245751,43.68615136,182.61,182.59,4.85306607]
[1753956246261,43.68615136,182.61,182.58,6.49326607]
[1753956246771,38.21,182.61,182.59,4.85306607]
[1753956247485,38.21,182.61,182.6,4.85306607]
[1753956250261,38.21,182.61,182.58,1.6402]
[1753956250458,38.21,182.61,182.59,4.85306607]
[1753956250957,38.21,182.61,182.6,4.85306607]
[1753956251159,38.21,182.61,182.59,4.85306607]
[1753956252781,43.68624092,182.61,182.59,4.85306607]
[1753956253289,0.71,182.6,182.58,1.6402]
[1753956253459,64.14,182.59,182.58,1.6402]
[1753956253959,64.14,182.59,182.56,87.7]
[1753956253960,69.70306607,182.59,182.56,87.7]
[1753956254159,5.56306607,182.58,182.53,12.81436607]
[1753956254359,38.14,182.57,182.53,12.81436607]
[1753956254766,43.61759099,182.57,182.53,12.81436607]
[1753956255082,4.85306607,182.55,182.53,7.9613]
[1753956255265,38.14,182.54,182.53,1.6224]
[1753956258866,43.61825134,182.54,182.53,1.6224]
[1753956259791,5.56306607,182.58,182.53,6.47546607]
[1753956259996,38.14,182.57,182.56,4.85306607]
[1753956265790,38.81,182.57,182.56,4.85306607]
[1753956266088,38.14,182.57,182.56,4.85306607]
[1753956266573,38.14,182.57,182.53,7.10086511]
[1753956266776,38.14,182.57,182.56,4.85306607]
[1753956266998,38.14,182.57,182.53,7.10086511]
[1753956267297,38.14,182.57,182.56,4.85306607]
[1753956270490,38.81,182.57,182.56,4.85306607]
[1753956270694,38.81,182.57,182.55,4.85306607]
[1753956270891,0.67,182.56,182.53,6.47546607]
[1753956271193,38.12,182.55,182.53,6.47546607]
[1753956271500,38.79,182.55,182.53,6.47546607]
[1753956272575,38.79,182.55,182.53,1.6224]
[1753956272870,38.79,182.55,182.53,6.47546607]
[1753956273475,38.79,182.55,182.54,4.85306607]
[1753956276290,38.12,182.55,182.54,4.85306607]
[1753956277515,38.79,182.55,182.54,4.85306607]
[1753956280215,44.26805688,182.55,182.53,4.91306607]
[1753956280398,0.67,182.54,182.53,4.91306607]
[1753956282317,38.12,182.55,182.53,4.91306607]
[1753956282523,38.79,182.55,182.53,4.91306607]
[1753956283327,38.12,182.55,182.53,4.91306607]
[1753956283514,0.67,182.54,182.53,4.91306607]
[1753956285609,0.03,182.57,182.53,98.09157262]
[1753956285814,38.15,182.57,182.56,6.35756607]
[1753956286843,38.15,182.57,182.56,11.83521725]
[1753956288133,0.03,182.57,182.56,28.61990122]
[1753956288332,0.03,182.57,182.56,29.16766633]
[1753956288729,0.03,182.57,182.56,35.70496633]
[1753956290059,0.03,182.59,182.57,16.78468397]
[1753956290232,0.03,182.59,182.58,27.11480119]
[1753956293363,0.03,182.59,182.58,114.81480119]
[1753956294863,0.03,182.61,182.59,16.78468397]
[1753956295052,0.03,182.61,182.6,27.03846123]
[1753956295254,0.03,182.61,182.6,22.18539516]
[1753956296363,0.03,182.61,182.6,27.66184641]
[1753956296763,0.03,182.61,182.6,32.51491248]
[1753956299368,0.03,182.61,182.6,120.21491248]
[1753956299549,0.03,182.61,182.6,119.66726736]
[1753956300759,0.03,182.61,182.6,109.96113522]
[1753956301074,0.03,182.61,182.6,119.66726736]
[1753956312080,0.74,182.61,182.6,119.66726736]
[1753956312401,0.74,182.61,182.6,114.81420129]
[1753956312881,0.74,182.61,182.6,157.74726736]
[1753956313855,0.03,182.61,182.6,157.74726736]
[1753956315867,0.74,182.61,182.6,114.81420129]
[1753956316883,0.74,182.61,182.6,109.96113522]
[1753956317078,0.74,182.61,182.6,114.81420129]
[1753956318187,0.03,182.61,182.6,119.66726736]
[1753956320100,0.74,182.61,182.6,114.81420129]
[1753956325604,0.74,182.61,182.6,98.02951732]
[1753956329101,0.03,182.61,182.6,98.02951732]
[1753956330597,0.7,182.61,182.6,98.02951732]
[1753956333804,0.7,182.61,182.6,92.55306607]
[1753956334422,0.7,182.61,182.6,4.85306607]
[1753956334812,0.7,182.61,182.6,3.11394296]
[1753956336820,0.7,182.61,182.6,4.86512486]
[1753956343315,0.7,182.61,182.59,4.92512486]
[1753956345032,0.7,182.61,182.59,0.06]
[1753956345215,42.47227946,182.61,182.59,0.06]
[1753956345430,3.69113413,182.6,182.59,0.06]
[1753956345811,4.36113413,182.6,182.59,0.06]
[1753956346235,9.22625899,182.6,182.59,0.06]
[1753956347110,40.70271024,182.6,182.59,0.06]
[1753956348122,14.70271024,182.6,182.59,0.06]
[1753956349214,9.83758538,182.6,182.59,0.06]
[1753956349415,14.70271024,182.6,182.59,0.06]
[1753956355345,9.83758538,182.6,182.59,0.06]
[1753956355546,14.70271024,182.6,182.59,0.06]
[1753956357222,14.69010705,182.6,182.59,0.06]
[1753956360746,12.94171326,182.6,182.59,0.06]
[1753956361742,26.0,182.58,182.57,0.06]
[1753956362058,70.89526201,182.58,182.57,0.06]
[1753956362345,71.60526201,182.58,182.57,0.06]
[1753956363827,77.08231316,182.58,182.57,0.06]
[1753956372039,93.86699713,182.58,182.57,1e-08]
[1753956374357,96.06280813,182.58,182.57,1e-08]
[1753956382076,100.66097181,182.58,182.57,1e-08]
[1753956384297,96.06826456,182.58,182.57,1e-08]
[1753956385196,92.97620847,182.58,182.53,0.06]
[1753956385404,29.11673107,182.54,182.53,0.06]
[1753956385602,70.90071844,182.54,182.53,0.06]
[1753956386789,76.37896978,182.54,182.53,0.06]
[1753956387993,3.68398737,182.54,182.53,3.17673107]
[1753956388296,38.1,182.54,182.53,1.6622]
[1753956388502,41.78398737,182.54,182.53,1.6622]
[1753956390002,41.78398737,182.54,182.53,4.77893107]
[1753956390296,41.78398737,182.54,182.53,1.6622]
[1753956390484,41.78398737,182.54,182.53,4.77893107]
[1753956395983,41.78398737,182.54,182.53,1.6622]
[1753956396184,41.78398737,182.54,182.53,4.77893107]
[1753956397806,42.45398737,182.54,182.53,0.06]
[1753956398008,47.93223871,182.54,182.53,0.06]
[1753956399606,42.45398737,182.54,182.53,0.06]
[1753956399793,41.78398737,182.54,182.53,0.06]
[1753956400306,41.78398737,182.54,182.53,3.17673107]
[1753956401387,42.45398737,182.54,182.53,0.06]
[1753956402412,41.78398737,182.54,182.53,0.06]
[1753956403799,41.78398737,182.54,182.53,3.17673107]
[1753956407009,42.45398737,182.54,182.53,3.17673107]
[1753956407992,41.78398737,182.54,182.53,3.17673107]
[1753956409401,41.78398737,182.54,182.53,0.06]
[1753956409606,41.78398737,182.54,182.53,3.17673107]
[1753956412698,42.50398737,182.54,182.53,3.17673107]
[1753956414601,41.78398737,182.54,182.53,3.17673107]
[1753956416193,41.78398737,182.54,182.53,0.06]
[1753956416399,41.78398737,182.54,182.53,3.17673107]
[1753956417195,42.50398737,182.54,182.53,0.06]
[1753956418526,42.50398737,182.54,182.53,3.17673107]
[1753956419923,42.50398737,182.54,182.53,0.06]
[1753956420127,42.50398737,182.54,182.53,3.17673107]
[1753956420630,47.98223871,182.54,182.53,0.06]
[1753956420809,51.09896978,182.54,182.53,0.06]
[1753956421212,47.98223871,182.54,182.53,0.06]
[1753956421527,51.09896978,182.54,182.53,0.06]
[1753956422512,47.98223871,182.54,182.53,0.06]
[1753956426803,73.98223871,182.54,182.53,0.06]
[1753956432043,77.09896978,182.54,182.53,0.06]
[1753956433720,73.98223871,182.54,182.53,0.06]
[1753956436963,77.09896978,182.54,182.53,0.06]
[1753956439649,73.98223871,182.54,182.53,0.06]
[1753956440948,77.09896978,182.54,182.53,0.06]
[1753956441135,80.64275082,182.54,182.53,0.06]
[1753956441341,83.75948189,182.54,182.53,0.06]
[1753956442318,57.75948189,182.54,182.53,0.06]
[1753956442527,69.93838189,182.54,182.52,0.2]
[1753956442830,9.55544658,182.53,182.52,0.2]
[1753956443127,15.03399805,182.53,182.52,0.2]
[1753956444334,19.65387281,182.53,182.52,0.2]
[1753956445949,19.65197778,182.53,182.52,0.2]
[1753956446951,17.59914467,182.53,182.52,0.2]
[1753956448247,26.0,182.5,182.47,3.11673107]
[1753956448450,41.76398737,182.49,182.47,3.11673107]
[1753956448750,38.08,182.49,182.47,3.11673107]
[1753956449444,38.08,182.49,182.46,3.11673107]
[1753956449751,0.7,182.48,182.46,3.11673107]
[1753956449951,38.1,182.47,182.45,3.11673107]
[1753956450153,38.1,182.47,182.44,3.11673107]
[1753956450444,38.8,182.47,182.44,3.11673107]
[1753956452751,38.1,182.47,182.44,3.11673107]
[1753956452960,0.7,182.46,182.44,3.11673107]
[1753956453134,38.1,182.45,182.44,3.11673107]
[1753956453847,38.8,182.45,182.44,3.11673107]
[1753956454159,38.1,182.45,182.44,3.11673107]
[1753956454631,38.1,182.45,182.42,5.48180012]
[1753956454632,38.8,182.45,182.42,3.11673107]
[1753956454832,0.7,182.44,182.42,3.11673107]
[1753956455057,38.1,182.43,182.42,3.11673107]
[1753956455244,38.1,182.43,182.4,7.00671621]
[1753956455448,38.1,182.43,182.42,3.11673107]
[1753956456655,38.1,182.43,182.4,1.5245]
[1753956456656,38.8,182.43,182.4,1.5245]
[1753956456956,38.8,182.43,182.4,4.64123107]
[1753956457140,38.8,182.43,182.4,1.5245]
[1753956457457,38.1,182.43,182.41,3.11673107]
[1753956457672,38.8,182.43,182.41,3.11673107]
[1753956457865,38.1,182.43,182.4,1.5245]
[1753956458177,0.7,182.42,182.39,3.11673107]
[1753956458339,38.1,182.41,182.39,3.11673107]
[1753956458658,38.1,182.4,182.39,3.11673107]
[1753956462443,38.8,182.4,182.39,3.11673107]
[1753956463460,38.1,182.4,182.39,3.11673107]
[1753956464656,38.1,182.4,182.39,8.5994878]
[1753956468349,38.1,182.42,182.39,8.5994878]
[1753956468559,0.7,182.44,182.41,3.11673107]
[1753956468767,38.1,182.42,182.39,5.48275673]
[1753956468945,38.1,182.42,182.38,13.70740464]
[1753956470270,38.1,182.42,182.41,3.11673107]
[1753956470473,38.8,182.42,182.41,3.11673107]
[1753956471774,38.1,182.42,182.41,8.59888665]
[1753956476281,38.78,182.42,182.41,8.59888665]
[1753956480089,38.1,182.42,182.41,8.59888665]
[1753956481388,38.78,182.42,182.41,8.59888665]
[1753956481688,38.78,182.42,182.39,5.48275673]
[1753956481987,38.78,182.42,182.41,3.11673107]
[1753956482784,38.78,182.42,182.41,8.59888665]
[1753956484087,38.78,182.42,182.41,3.11673107]
[1753956485798,47.37870041,182.42,182.38,0.06]
[1753956485966,4.37294109,182.41,182.38,0.06]
[1753956486478,0.68,182.4,182.38,0.06]
[1753956486679,38.12,182.39,182.38,0.06]
[1753956486873,41.81310962,182.39,182.38,0.06]
[1753956487076,42.49310962,182.39,182.38,0.06]
[1753956488585,38.8,182.39,182.38,0.06]
[1753956490467,38.8,182.39,182.36,5.54364078]
[1753956490468,26.0,182.37,182.36,0.06]
[1753956490681,64.12,182.37,182.36,0.06]
[1753956490996,64.8,182.37,182.36,0.06]
[1753956509186,64.12,182.37,182.36,3.17673107]
[1753956509380,38.12,182.37,182.36,3.17673107]
[1753956509585,38.12,182.37,182.36,8.66038976]
[1753956510522,38.1,182.4,182.36,8.73038976]
[1753956510717,38.1,182.4,182.39,3.11673107]
[1753956511627,38.1,182.4,182.39,8.5994878]
[1753956512208,38.1,182.41,182.39,8.5994878]
[1753956512415,38.1,182.41,182.4,3.11673107]
[1753956514120,38.1,182.42,182.4,8.66892654]
[1753956514313,38.1,182.42,182.41,3.11673107]
[1753956514709,38.1,182.43,182.41,3.11673107]
[1753956514924,0.66,182.44,182.42,3.11673107]
[1753956515108,0.66,182.44,182.43,3.11673107]
[1753956515307,38.76,182.44,182.43,3.11673107]
[1753956515508,38.1,182.44,182.43,3.11673107]
[1753956515916,38.1,182.44,182.43,8.59828563]
[1753956516842,38.1,182.44,182.43,10.35404609]
[1753956517032,38.13,182.44,182.43,10.35404609]
[1753956517342,0.03,182.44,182.43,15.22653762]
[1753956518203,0.03,182.44,182.43,102.92653762]
[1753956518406,0.03,182.44,182.43,102.99653762]
[1753956518814,0.03,182.44,182.43,32.08122159]
[1753956519327,0.03,182.47,182.44,28.45953808]
[1753956519512,0.03,182.47,182.46,4.87249153]
[1753956519949,0.03,182.47,182.46,4.94249153]
[1753956520111,0.03,182.47,182.46,109.4271755]
[1753956521437,0.03,182.47,182.46,114.90782879]
[1753956521819,0.66,182.54,182.47,16.78468397]
[1753956522027,38.76,182.54,182.53,4.87249153]
[1753956522824,38.1,182.54,182.53,4.87249153]
[1753956523421,0.69,182.57,182.54,5.47825134]
[1753956523617,38.79,182.57,182.56,4.87249153]
[1753956526516,38.79,182.57,182.53,5.47848049]
[1753956526837,38.13,182.57,182.56,4.87249153]
[1753956527217,38.79,182.57,182.56,4.87249153]
[1753956537653,64.77,182.57,182.56,4.87249153]
[1753956540546,70.24735115,182.57,182.53,87.7]
[1753956540746,0.66,182.56,182.54,4.87249153]
[1753956540952,38.06,182.55,182.54,4.87249153]
[1753956541255,38.72,182.55,182.54,4.87249153]
[1753956549553,44.19795124,182.55,182.53,4.87249153]
[1753956549755,0.66,182.54,182.52,4.87249153]
[1753956549939,38.06,182.53,182.51,87.7]
[1753956550140,0.66,182.52,182.51,92.57249153]
[1753956550861,0.66,182.52,182.51,4.87249153]
[1753956552755,0.66,182.52,182.48,87.7]
[1753956552955,38.06,182.51,182.49,4.87249153]
[1753956553167,0.66,182.5,182.49,4.87249153]
[1753956553353,38.06,182.51,182.49,4.87249153]
[1753956553555,38.72,182.51,182.5,4.87249153]
[1753956555444,38.72,182.51,182.48,93.18004578]
[1753956555661,38.72,182.51,182.5,4.87249153]
[1753956556049,38.06,182.51,182.49,4.87249153]
[1753956556445,43.53919035,182.51,182.48,92.57249153]
[1753956556646,0.66,182.5,182.48,4.87249153]
[1753956556862,38.06,182.49,182.48,4.87249153]
[1753956557258,38.72,182.49,182.47,0.06]
[1753956557464,0.66,182.48,182.47,0.06]
[1753956559253,0.66,182.48,182.47,4.93249153]
[1753956561067,0.66,182.48,182.47,0.06]
[1753956561270,38.06,182.49,182.47,4.93249153]
[1753956561857,38.77,182.49,182.47,4.93249153]
[1753956562273,38.77,182.49,182.48,4.87249153]
[1753956562477,42.45885821,182.49,182.48,4.87249153]
[1753956563956,42.45885821,182.49,182.47,4.93249153]
[1753956564156,38.06,182.49,182.47,4.93249153]
[1753956564465,0.71,182.48,182.47,4.93249153]
[1753956564860,0.71,182.48,182.47,0.06]
[1753956565171,4.39947678,182.48,182.47,0.06]
[1753956565370,0.71,182.48,182.47,0.06]
[1753956566154,6.1900526,182.48,182.47,0.06]
[1753956566357,0.71,182.48,182.47,0.06]
[1753956566655,38.79,182.48,182.47,0.06]
[1753956581474,44.2700526,182.48,182.47,0.06]
[1753956581866,47.38839911,182.48,182.47,0.06]
[1753956582271,51.07422407,182.48,182.47,0.06]
[1753956583469,51.10422407,182.48,182.47,0.06]
[1753956586188,47.98587756,182.48,182.47,0.06]
[1753956586396,51.10422407,182.48,182.47,0.06]
[1753956589873,4.42582496,182.48,182.47,0.06]
[1753956590177,42.50582496,182.48,182.47,0.06]
[1753956593582,3.71582496,182.48,182.47,0.06]
[1753956593783,64.11,182.48,182.47,3.17834651]
[1753956593996,67.79582496,182.48,182.47,3.17834651]
[1753956594373,41.79582496,182.48,182.47,3.24834651]
[1753956594580,3.71582496,182.48,182.47,3.24834651]
[1753956595401,3.71582496,182.48,182.47,3.17834651]
[1753956595606,3.71582496,182.48,182.47,8.65869944]
[1753956595982,3.71582496,182.48,182.47,25.51338341]
[1753956596285,0.03,182.48,182.47,25.51338341]
[1753956596801,0.03,182.48,182.47,27.26461245]
[1753956598298,0.03,182.48,182.47,114.96461245]
[1753956600706,3.68582496,182.5,182.47,114.96461245]
[1753956600919,3.71582496,182.53,182.5,16.78468397]
[1753956601084,0.03,182.53,182.52,4.86957555]
[1753956601414,0.03,182.53,182.52,10.34842718]
[1753956601587,3.71582496,182.53,182.52,10.34842718]
[1753956601788,0.03,182.53,182.52,10.34842718]
[1753956601977,0.03,182.53,182.52,98.04842718]
[1753956602178,0.03,182.53,182.52,119.7726867]
[1753956603488,0.03,182.57,182.56,4.86957555]
[1753956603689,0.03,182.57,182.56,4.93957555]
[1753956605312,0.03,182.57,182.56,10.41722673]
[1753956607025,0.03,182.57,182.56,10.34722673]
[1753956613016,0.03,182.57,182.56,98.04722673]
[1753956614301,0.73,182.57,182.56,98.04722673]
[1753956616793,0.73,182.57,182.56,92.56957555]
[1753956617488,0.73,182.57,182.56,98.04722673]
[1753956618526,0.03,182.57,182.56,98.04722673]
[1753956619440,0.73,182.57,182.56,98.04722673]
[1753956622007,0.73,182.57,182.56,92.56957555]
[1753956622219,0.73,182.57,182.56,87.7]
[1753956624015,0.73,182.57,182.53,10.34793635]
[1753956625239,0.73,182.57,182.53,4.86957555]
[1753956625404,11.07696367,182.57,182.52,10.3483147]
[1753956625610,10.37696367,182.57,182.52,10.3483147]
[1753956625816,0.69,182.56,182.52,10.3483147]
[1753956626037,0.69,182.56,182.52,5.47873915]
[1753956626208,0.69,182.56,182.52,10.3483147]
[1753956626409,0.69,182.56,182.53,0.06]
[1753956628326,5.55957555,182.56,182.53,0.06]
[1753956628627,0.69,182.55,182.53,0.06]
[1753956630824,5.55957555,182.55,182.53,0.06]
[1753956631030,4.86957555,182.54,182.53,0.06]
[1753956631234,5.55957555,182.54,182.53,0.06]
[1753956631648,31.55957555,182.54,182.53,0.06]
[1753956632821,37.03782689,182.54,182.53,0.06]
[1753956639453,75.11782689,182.54,182.53,0.06]
[1753956642223,78.79874722,182.54,182.53,0.06]
[1753956644761,77.04680225,182.54,182.53,0.06]
[1753956645051,77.04723389,182.54,182.53,0.06]
[1753956646438,51.04723389,182.54,182.53,0.06]
[1753956647834,67.51762789,182.54,182.53,0.06]
[1753956648750,69.27284383,182.54,182.53,0.06]
[1753956669869,69.30284383,182.54,182.53,0.06]
[1753956670754,67.54855005,182.54,182.53,0.06]
[1753956671775,69.60042829,182.54,182.53,0.06]
[1753956672447,103.46101318,182.54,182.53,0.06]
[1753956672670,98.85932322,182.54,182.53,0.06]
[1753956672850,26.0,182.52,182.51,0.06]
[1753956673053,85.40599391,182.52,182.51,0.06]
[1753956673260,86.08599391,182.52,182.51,0.06]
[1753956673482,88.28228791,182.52,182.51,0.06]
[1753956674392,91.56484554,182.52,182.51,0.06]
[1753956675153,79.09063458,182.52,182.51,0.06]
[1753956676666,77.03875634,182.52,182.51,0.06]
[1753956681687,73.9202036,182.52,182.51,0.06]
[1753956681865,77.03875634,182.52,182.51,0.06]
[1753956683865,89.5129673,182.52,182.51,0.06]
[1753956684065,96.18464637,182.52,182.51,0.06]
[1753956684886,91.56577709,182.52,182.51,0.06]
[1753956685183,26.0,182.48,182.47,0.06]
[1753956685374,70.87990471,182.48,182.47,0.06]
[1753956685576,71.54990471,182.48,182.47,0.06]
[1753956686881,77.02995731,182.48,182.47,0.06]
[1753956702603,73.91140457,182.48,182.47,0.06]
[1753956702792,77.02995731,182.48,182.47,0.06]
[1753956708808,93.81464128,182.48,182.47,0.06]
[1753956710609,100.48573911,182.48,182.47,0.06]
[1753956713806,16.78468397,182.47,182.45,0.06]
[1753956714111,63.71574292,182.46,182.45,0.06]
[1753956714405,64.37574292,182.46,182.45,0.06]
[1753956715010,69.85639621,182.46,182.45,0.06]
[1753956715508,74.47126313,182.46,182.45,0.06]
[1753956715892,66.17514242,182.46,182.45,0.06]
[1753956716220,74.48240065,182.46,182.45,0.06]
[1753956720812,76.67965965,182.46,182.45,0.06]
[1753956721120,74.48298266,182.46,182.45,0.06]
[1753956722696,69.86751586,182.46,182.45,0.06]
[1753956722892,69.86751586,182.46,182.45,1e-08]
[1753956723122,26.0,182.43,182.37,1.6599]
[1753956723288,29.11855274,182.39,182.37,1.6599]
[1753956723489,41.77237344,182.38,182.37,1.5899]
[1753956723914,3.69237344,182.38,182.37,1.5899]
[1753956724118,38.08,182.38,182.37,4.77845274]
[1753956724318,41.77237344,182.38,182.37,4.77845274]
[1753956724903,8.59958229,182.45,182.37,10.26181074]
[1753956725117,41.77180512,182.44,182.4,3.11855274]
[1753956725307,26.0,182.42,182.41,0.07]
[1753956725509,67.77180512,182.42,182.41,0.07]
[1753956726306,41.77180512,182.42,182.41,3.18855274]
[1753956726501,3.69180512,182.42,182.41,8.67070832]
[1753956726701,38.08,182.42,182.41,8.67070832]
[1753956728615,41.77443603,182.42,182.4,6.4197]